fUSD/lending_fUSD_20240627
["ID","MTS","AMOUNT","RATE_DAILY","PERIOD"]
[330469681,1719469832677,-327.10456118,0.000139,2]
[330469682,1719469832686,-200.41764912,0.00013989,2]
[330469683,1719469832695,-474.17284476,0.00013989,2]
[330469684,1719469832705,-246.28815749,0.00013989,2]
[330469685,1719469832716,-272.62522257,0.00013989,2]
[330469686,1719469832725,-384663.8994454,0.00013999,2]
[330469689,1719469837748,-527.3426415,0.00013999,2]
[330469696,1719469837923,-573.65762679,0.00013999,2]
[330469697,1719469837935,-801.47799442,0.00013999,2]
[330469699,1719469838092,-84322.22405864,0.00013999,2]
[330469716,1719469839965,-1986.34492326,0.00013999,2]
[330469717,1719469839977,-3183.15448163,0.00013999,2]
[330469718,1719469839989,-1435.54471681,0.00013999,2]
[330469719,1719469840003,-2041.39395642,0.00013999,2]
[330469720,1719469840015,-578.06080476,0.00013999,2]
[330469721,1719469840027,-3591.1465459,0.00013999,2]
[330469722,1719469840039,-1001.67810002,0.00013999,2]
[330469723,1719469840051,-4637.90857671,0.00013999,2]
[330469724,1719469840149,-17160.4602514,0.00013999,2]
[330469725,1719469840160,-906.4903941,0.00013999,2]
[330469726,1719469840172,-3325.0,0.00013999,2]
[330469727,1719469840183,-1960.0,0.00013999,2]
[330469728,1719469840199,-27568.56319972,0.00013999,2]
[330469729,1719469840210,-7528.2849564,0.00013999,2]
[330469730,1719469840220,-155.50465982,0.00013999,2]
[330469731,1719469840230,-139243.57501714,0.00014,2]
[330469732,1719469840241,-840.77658634,0.00014,2]
[330469733,1719469840331,-844.59940527,0.00014,2]
[330469761,1719469843012,-375.95650838,0.00014,2]
[330469762,1719469843053,-109010.80518224,0.00014,2]
[330469763,1719469843279,-3467.72852243,0.00014,2]
[330469764,1719469843291,-2085.55180421,0.00014,2]
[330469765,1719469843303,-470.83465363,0.00014,2]
[330469766,1719469843315,-374.01211276,0.00014,2]
[330469812,1719469847027,-607.7,0.00014,2]
[330469813,1719469847246,-1361.88681,0.00014,2]
[330469814,1719469950322,4510.9392,0.00010997,2]
[330469815,1719469989792,264.29727916,0.00010997,2]
[330469816,1719469999442,19809.55605681,0.00010997,2]
[330469817,1719470017460,13187.0133467,0.00010997,2]
[330469818,1719470100445,19813.39655712,0.00010997,2]
[330469819,1719470147340,-2000.0,0.00031007,30]
[330469820,1719470147365,-2000.0,0.00031007,30]
[330469821,1719470147388,-191.0,0.00031007,30]
[330469822,1719470147412,-1000.0,0.00031007,30]
[330469823,1719470147435,-2000.0,0.00031007,30]
[330469824,1719470147459,-2000.0,0.00031007,30]
[330469825,1719470147483,-2000.0,0.00031007,30]
[330469826,1719470147507,-2000.0,0.00031007,30]
[330469827,1719470147532,-1047.52609145,0.00031007,120]
[330469828,1719470147556,-347.92487181,0.00031007,120]
[330469829,1719470147578,-1025.01611819,0.00031007,30]
[330469830,1719470147602,-263.02465599,0.00031007,120]
[330469831,1719470147625,-300.0,0.00031007,120]
[330469832,1719470147649,-228.0,0.00031007,120]
[330469833,1719470147673,-453.845,0.00031007,30]
[330469834,1719470147697,-1847.59883518,0.00031007,30]
[330469835,1719470147721,-1025.0,0.00031007,30]
[330469836,1719470147744,-256.87375516,0.00031007,30]
[330469837,1719470147768,-238.45583462,0.00031007,60]
[330469838,1719470147797,-155.12207787,0.00031007,30]
[330469839,1719470147820,-551.28105775,0.00031007,120]
[330469840,1719470147846,-981.0,0.00031007,30]
[330469841,1719470147870,-139006.77037591,0.00031007,120]
[330469842,1719470147893,-50000.0,0.00031007,120]
[330469843,1719470147916,-1500.0,0.00031007,120]
[330469844,1719470147941,-191.0,0.00031007,30]
[330469845,1719470147966,-2043.26,0.00031007,30]
[330469846,1719470147989,-2043.26,0.00031007,32]
[330469847,1719470148013,-2043.26,0.00031007,34]
[330469848,1719470148040,-2043.26,0.00031007,36]
[330469849,1719470148064,-2043.26,0.00031007,38]
[330469850,1719470148088,-2043.26,0.00031007,40]
[330469851,1719470148111,-2043.26,0.00031007,42]
[330469852,1719470148136,-2043.26,0.00031007,44]
[330469853,1719470148161,-2043.26,0.00031007,46]
[330469854,1719470148187,-2043.3901818,0.00031007,48]
[330469855,1719470155022,500.0,0.00031007,30]
[330469856,1719470161557,-250.85173047,0.00024,30]
[330469857,1719470161592,-2006.34776175,0.000248,30]
[330469858,1719470161618,-668.00494452,0.00025,30]
[330469859,1719470161642,-920.67899952,0.00025,30]
[330469860,1719470161677,-662.27737737,0.000269,30]
[330469861,1719470161701,-327.71420969,0.00027,120]
[330469862,1719470161728,-599.52610358,0.0002736,120]
[330469863,1719470161753,-292.66446268,0.0002739,30]
[330469864,1719470161776,-150.0,0.00027397,30]
[330469865,1719470161800,-200.37983078,0.00027397,60]
[330469866,1719470161834,-150.0,0.00027534,30]
[330469867,1719470161871,-150.0,0.00027671,30]
[330469868,1719470161904,-150.0,0.00027808,30]
[330469869,1719470161935,-150.0,0.00027945,30]
[330469870,1719470161960,-150.0,0.00028082,30]
[330469871,1719470161984,-150.0,0.00028219,30]
[330469872,1719470162009,-150.0,0.00028356,30]
[330469873,1719470162035,-150.0,0.00028493,30]
[330469874,1719470162060,-150.0,0.0002863,30]
[330469875,1719470162086,-150.0,0.00028767,30]
[330469876,1719470162112,-150.0,0.00028904,30]
[330469877,1719470162137,-1800.0,0.00029,30]
[330469878,1719470162160,-150.0,0.00029041,30]
[330469879,1719470162184,-150.0,0.00029178,30]
[330469880,1719470162207,-150.0,0.00029315,30]
[330469881,1719470162232,-150.0,0.00029452,30]
[330469882,1719470162257,-150.0,0.00029589,30]
[330469883,1719470162283,-150.0,0.00029712,120]
[330469884,1719470162307,-150.0,0.00029726,30]
[330469885,1719470162334,-150.0,0.00029859,120]
[330469886,1719470162360,-230.31399762,0.00029863,30]
[330469887,1719470162387,-150.0,0.00029882,120]
[330469888,1719470162414,-150.0,0.00029892,120]
[330469889,1719470162441,-368.78253169,0.0003,30]
[330469890,1719470162465,-312.1684747,0.0003,120]
[330469891,1719470162489,-965.91431427,0.0003,30]
[330469892,1719470162515,-1000.0,0.0003,120]
[330469893,1719470162539,-307.72844503,0.0003,30]
[330469894,1719470162564,-1800.0,0.0003,31]
[330469895,1719470162590,-633.79647839,0.0003,30]
[330469896,1719470162617,-150.0,0.00030047,120]
[330469897,1719470162642,-200.0,0.00030137,60]
[330469898,1719470162669,-150.0,0.00030357,120]
[330469899,1719470162709,-150.0,0.00030465,120]
[330469900,1719470162736,-150.0,0.00030487,120]
[330469901,1719470162763,-1208.0,0.00030507,30]
[330469902,1719470162788,-150.0,0.00030556,120]
[330469903,1719470162814,-150.0,0.00030671,120]
[330469904,1719470162846,-150.0,0.00030733,120]
[330469905,1719470162871,-150.0,0.00030752,120]
[330469906,1719470162897,-250.0,0.000308,30]
[330469907,1719470162925,-150.0,0.0003096,120]
[330469908,1719470162952,-150.0,0.00030991,120]
[330469909,1719470162978,-1841.23705919,0.00031,32]
[330469910,1719470163004,-500.0,0.00031,120]
[330469911,1719470163046,-150.0,0.00031615,120]
[330469912,1719470163079,-150.0,0.00031673,120]
[330469913,1719470163118,-150.0,0.00031819,120]
[330469914,1719470163149,-150.0,0.00031893,120]
[330469915,1719470163174,-655.33446009,0.00032,120]
[330469916,1719470163202,-486.0,0.00032,120]
[330469917,1719470163228,-500.0,0.00032,120]
[330469918,1719470163254,-150.0,0.00032027,120]
[330469919,1719470163281,-150.0,0.00032081,120]
[330469920,1719470163317,-150.0,0.00032097,120]
[330469921,1719470163359,-150.0,0.00032253,120]
[330469922,1719470163400,-263.32515652,0.00032393,40]
[330469923,1719470163430,-150.0,0.00032418,120]
[330469924,1719470163892,-581.77051472,0.00032876,30]
[330469925,1719470163918,-200.0,0.00032877,60]
[330469926,1719470163941,-292.23,0.00032877,30]
[330469927,1719470163965,-150.0,0.00032925,120]
[330469928,1719470163989,-159.11198623,0.00033,120]
[330469929,1719470164012,-500.0,0.00033,120]
[330469930,1719470164037,-150.0,0.00033137,120]
[330469931,1719470164063,-1389.44,0.00033151,120]
[330469932,1719470164105,-150.0,0.00033177,120]
[330469933,1719470164130,-150.0,0.00033312,120]
[330469934,1719470164155,-150.0,0.00033437,120]
[330469935,1719470164180,-150.0,0.00033497,120]
[330469936,1719470164206,-157.0,0.000335,31]
[330469937,1719470164232,-157.0,0.000335,31]
[330469938,1719470164258,-157.0,0.000335,31]
[330469939,1719470164286,-157.0,0.000335,31]
[330469940,1719470164309,-522.30057823,0.000338,120]
[330469941,1719470164334,-150.0,0.00033832,120]
[330469942,1719470164358,-150.0,0.00033991,120]
[330469943,1719470164382,-500.0,0.00034,120]
[330469944,1719470164406,-150.0,0.0003401,120]
[330469945,1719470164430,-150.0,0.00034068,120]
[330469946,1719470164455,-150.0,0.00034107,120]
[330469947,1719470164479,-150.0,0.00034216,120]
[330469948,1719470164504,-150.0,0.00034578,120]
[330469949,1719470164528,-150.0,0.00034595,120]
[330469950,1719470164552,-815.0824739,0.00035,30]
[330469951,1719470164574,-1067.47051513,0.00035,30]
[330469952,1719470164597,-165.79993859,0.00035,30]
[330469953,1719470164619,-500.0,0.00035,120]
[330469954,1719470164641,-200.0,0.00035,60]
[330469955,1719470164665,-1685.0,0.00035,120]
[330469956,1719470164689,-200.0,0.00035616,60]
[330469957,1719470164713,-150.0,0.0003587,120]
[330469958,1719470164736,-1000.0,0.00036,120]
[330469959,1719470164759,-500.0,0.00036,120]
[330469960,1719470164785,-150.0,0.0003617,120]
[330469961,1719470164809,-150.0,0.00036171,120]
[330469962,1719470164839,-157.0,0.000362,31]
[330469963,1719470164864,-157.0,0.000362,31]
[330469964,1719470164892,-157.0,0.000362,31]
[330469965,1719470164921,-157.0,0.000362,31]
[330469966,1719470164946,-150.0,0.00036431,120]
[330469967,1719470164971,-150.0,0.00036445,120]
[330469968,1719470164995,-500.0,0.00037,120]
[330469969,1719470165022,-756.48029602,0.00037,120]
[330469970,1719470165052,-150.0,0.00037101,120]
[330469971,1719470165078,-150.0,0.00037524,120]
[330469972,1719470165110,-167.68786329,0.00038,30]
[330469973,1719470165138,-1000.0,0.00038,120]
[330469974,1719470165162,-167.18743105,0.00038,30]
[330469975,1719470165185,-500.0,0.00038,120]
[330469976,1719470165210,-150.0,0.00038222,120]
[330469977,1719470165236,-300.0,0.0003825,120]
[330469978,1719470165261,-200.0,0.00038356,60]
[330469979,1719470165286,-432.28799448,0.00038356,30]
[330469980,1719470165309,-833.29811566,0.000384,33]
[330469981,1719470165334,-150.0,0.00038433,120]
[330469982,1719470165358,-432.28799448,0.00038521,30]
[330469983,1719470165382,-432.28799448,0.00038685,30]
[330469984,1719470165405,-608.35437512,0.000387,30]
[330469985,1719470165431,-150.0,0.00038738,120]
[330469986,1719470165457,-150.0,0.00038784,120]
[330469987,1719470165481,-150.0,0.00038785,120]
[330469988,1719470165506,-432.28799448,0.00038849,30]
[330469989,1719470165530,-505.10379062,0.000389,30]
[330469990,1719470165556,-150.0,0.00038956,120]
[330469991,1719470165579,-167.93747751,0.00039,30]
[330469992,1719470165602,-878.89539217,0.00039,120]
[330469993,1719470165625,-250.0,0.00039,120]
[330469994,1719470165650,-157.0,0.00039,31]
[330469995,1719470165675,-157.0,0.00039,31]
[330469996,1719470165700,-157.0,0.00039,31]
[330469997,1719470165726,-157.0,0.00039,31]
[330469998,1719470165764,-432.28799448,0.00039014,30]
[330469999,1719470165791,-150.0,0.00039108,120]
[330470000,1719470165816,-432.28799448,0.00039178,30]
[330470001,1719470165848,-150.0,0.00039228,120]
[330470002,1719470165875,-432.28799448,0.00039315,30]
[330470003,1719470165903,-432.28799448,0.00039479,30]
[330470004,1719470165932,-279.61458624,0.000395,30]
[330470005,1719470165960,-150.0,0.00039585,120]
[330470006,1719470165986,-432.28799448,0.00039644,30]
[330470007,1719470166011,-374.64901912,0.000397,60]
[330470008,1719470166037,-150.0,0.00039755,120]
[330470009,1719470166067,-432.28799448,0.00039808,30]
[330470010,1719470166091,-31050.15473214,0.0003985,30]
[330470011,1719470166118,-300.0,0.00039938,120]
[330470012,1719470166145,-150.0,0.00039945,120]
[330470013,1719470166171,-432.28799448,0.00039973,30]
[330470014,1719470166197,-250.0,0.00039999,30]
[330470015,1719470166224,-151.0,0.0004,120]
[330470016,1719470166253,-172.21111111,0.0004,120]
[330470017,1719470166279,-477.12749073,0.0004,30]
[330470018,1719470166308,-258.21548733,0.0004,120]
[330470019,1719470166333,-623.81859894,0.0004,120]
[330470020,1719470166365,-310.36176991,0.0004,30]
[330470021,1719470166392,-197.88600459,0.0004,30]
[330470022,1719470166419,-531.16940828,0.0004,30]
[330470023,1719470166446,-399.24733834,0.0004,30]
[330470024,1719470166473,-1733.85427039,0.0004,60]
[330470025,1719470166499,-206.95951623,0.0004,30]
[330470026,1719470166524,-276.82973311,0.0004,120]
[330470027,1719470166974,-1000.0,0.0004,120]
[330470028,1719470167001,-1000.0,0.0004,120]
[330470029,1719470167026,-244696.26376447,0.0004,30]
[330470030,1719470167050,-281.7269083,0.0004,120]
[330470031,1719470167075,-19779.7880052,0.0004,30]
[330470032,1719470167100,-4002.21262469,0.0004,120]
[330470033,1719470167123,-500.0,0.0004,120]
[330470034,1719470167147,-500.0,0.0004,120]
[330470035,1719470167171,-1208.55180266,0.0004,120]
[330470036,1719470167196,-181.24157927,0.0004,30]
[330470037,1719470167222,-2478.23919716,0.0004,30]
[330470038,1719470167248,-335.64938184,0.0004,120]
[330470039,1719470167274,-500.0,0.0004,30]
[330470040,1719470167301,-500.0,0.0004,30]
[330470041,1719470167327,-2500.0,0.0004,60]
[330470042,1719470167351,-463.39405053,0.0004,120]
[330470043,1719470167374,-200.0,0.0004,120]
[330470044,1719470167403,-12500.0,0.0004,120]
[330470045,1719470167428,-12500.0,0.0004,120]
[330470046,1719470167452,-12500.0,0.0004,120]
[330470047,1719470167478,-150.0,0.00040009,120]
[330470048,1719470167504,-150.0,0.00040053,120]
[330470049,1719470167530,-150.0,0.00040057,120]
[330470050,1719470167556,-12500.0,0.00040063,120]
[330470051,1719470167580,-12500.0,0.00040063,120]
[330470052,1719470167605,-12500.0,0.00040063,120]
[330470053,1719470167630,-12500.0,0.00040063,120]
[330470054,1719470167656,-150.0,0.00040088,120]
[330470055,1719470167682,-150.0,0.00040102,120]
[330470056,1719470167707,-12500.0,0.00040125,120]
[330470057,1719470167731,-12500.0,0.00040125,120]
[330470058,1719470167757,-12500.0,0.00040125,120]
[330470059,1719470167782,-12500.0,0.00040125,120]
[330470060,1719470167809,-150.0,0.00040126,120]
[330470061,1719470167839,-432.28799448,0.00040137,30]
[330470062,1719470167864,-150.0,0.00040141,120]
[330470063,1719470167889,-12500.0,0.00040188,120]
[330470064,1719470167913,-12500.0,0.00040188,120]
[330470065,1719470167937,-12500.0,0.00040188,120]
[330470066,1719470167961,-12500.0,0.00040188,120]
[330470067,1719470167986,-12500.0,0.0004025,120]
[330470068,1719470168010,-12500.0,0.0004025,120]
[330470069,1719470168034,-12500.0,0.0004025,120]
[330470070,1719470168060,-432.28799448,0.00040301,30]
[330470071,1719470168084,-12500.0,0.00040313,120]
[330470072,1719470168111,-12500.0,0.00040313,120]
[330470073,1719470168159,-12500.0,0.00040313,120]
[330470074,1719470168187,-12500.0,0.00040313,120]
[330470075,1719470168215,-12500.0,0.00040375,120]
[330470076,1719470168241,-12500.0,0.00040375,120]
[330470077,1719470168267,-12500.0,0.00040375,120]
[330470078,1719470168310,-150.0,0.0004041,120]
[330470079,1719470168337,-12500.0,0.00040438,120]
[330470080,1719470168364,-12500.0,0.00040438,120]
[330470081,1719470168391,-12500.0,0.00040438,120]
[330470082,1719470168419,-12500.0,0.00040438,120]
[330470083,1719470168446,-432.28799448,0.00040466,30]
[330470084,1719470168472,-12500.0,0.000405,120]
[330470085,1719470168498,-12500.0,0.000405,120]
[330470086,1719470168524,-12500.0,0.000405,120]
[330470087,1719470168552,-12500.0,0.000405,120]
[330470088,1719470168577,-12500.0,0.00040563,120]
[330470089,1719470168603,-12500.0,0.00040563,120]
[330470090,1719470168628,-12500.0,0.00040563,120]
[330470091,1719470168652,-12500.0,0.00040563,120]
[330470092,1719470168676,-181.8415122,0.000406,120]
[330470093,1719470168700,-12500.0,0.00040625,120]
[330470094,1719470168724,-12500.0,0.00040625,120]
[330470095,1719470168749,-1771.9,0.00040625,120]
[330470096,1719470168775,-432.28799448,0.0004063,30]
[330470097,1719470168800,-12500.0,0.00040688,120]
[330470098,1719470168829,-12500.0,0.00040688,120]
[330470099,1719470168854,-172.21111111,0.00040712,120]
[330470100,1719470168880,-12500.0,0.0004075,120]
[330470101,1719470168908,-12500.0,0.0004075,120]
[330470102,1719470168934,-268.84897,0.000408,30]
[330470103,1719470168959,-12500.0,0.00040813,120]
[330470104,1719470168985,-12500.0,0.00040813,120]
[330470105,1719470169010,-150.0,0.00040856,120]
[330470106,1719470169036,-12500.0,0.00040875,120]
[330470107,1719470169064,-12500.0,0.00040875,120]
[330470108,1719470169091,-240.86274361,0.000409,120]
[330470109,1719470169124,-150.0,0.00040902,120]
[330470110,1719470169152,-12500.0,0.00040938,120]
[330470111,1719470169182,-12500.0,0.00040938,120]
[330470112,1719470169216,-10000.0,0.00041,30]
[330470113,1719470169248,-288.37487408,0.00041,60]
[330470114,1719470169277,-3087.95389738,0.00041,120]
[330470115,1719470169306,-5550.0,0.00041,120]
[330470116,1719470169336,-1524.10835679,0.00041,120]
[330470117,1719470169365,-643.38,0.00041,120]
[330470118,1719470169393,-12500.0,0.00041,120]
[330470119,1719470169421,-12500.0,0.00041,120]
[330470120,1719470169449,-152.0,0.00041041,31]
[330470121,1719470169477,-12500.0,0.00041063,120]
[330470122,1719470169504,-572.7,0.00041095,120]
[330470123,1719470169531,-572.7,0.00041095,120]
[330470124,1719470169560,-572.7,0.00041095,120]
[330470125,1719470169588,-572.7,0.00041095,120]
[330470126,1719470169615,-572.7,0.00041095,120]
[330470127,1719470169642,-572.7,0.00041095,120]
[330470128,1719470169669,-572.7,0.00041095,120]
[330470129,1719470169696,-572.7,0.00041095,120]
[330470130,1719470169722,-572.7,0.00041095,120]
[330470131,1719470170141,-572.7,0.00041095,120]
[330470132,1719470170167,-572.7,0.00041095,120]
[330470133,1719470170194,-572.7,0.00041095,120]
[330470134,1719470170229,-572.7,0.00041095,120]
[330470135,1719470170256,-572.7,0.00041095,120]
[330470136,1719470170282,-572.7,0.00041095,120]
[330470137,1719470170309,-572.7,0.00041095,120]
[330470138,1719470170334,-572.7,0.00041095,120]
[330470139,1719470170359,-572.7,0.00041095,120]
[330470140,1719470170385,-572.7,0.00041095,120]
[330470141,1719470170411,-572.7,0.00041095,120]
[330470142,1719470170436,-572.7,0.00041095,120]
[330470143,1719470170462,-572.7,0.00041095,120]
[330470144,1719470170486,-572.7,0.00041095,120]
[330470145,1719470170510,-572.90681244,0.00041095,120]
[330470146,1719470170535,-510.0,0.00041095,120]
[330470147,1719470170561,-200.0,0.00041096,60]
[330470148,1719470170586,-1000.0,0.00041096,30]
[330470149,1719470170612,-151.0,0.00041123,120]
[330470150,1719470170637,-12500.0,0.00041125,120]
[330470151,1719470170661,-2215.32319375,0.0004117,60]
[330470152,1719470170686,-800.0,0.00041182,30]
[330470153,1719470170710,-150.0,0.00041195,30]
[330470154,1719470170734,-1000.0,0.00041197,30]
[330470155,1719470170758,-150.0,0.00041214,120]
[330470156,1719470170782,-150.0,0.00041268,30]
[330470157,1719470170808,-1000.0,0.00041299,30]
[330470158,1719470170836,-416.035734,0.00041303,30]
[330470159,1719470170862,-150.0,0.00041346,120]
[330470160,1719470170888,-150.0,0.0004136,120]
[330470161,1719470170915,-510.0,0.00041369,120]
[330470162,1719470170940,-150.0,0.0004138,120]
[330470163,1719470170965,-1000.0,0.000414,30]
[330470164,1719470170989,-172.21111111,0.00041425,120]
[330470165,1719470171012,-150.0,0.00041449,30]
[330470166,1719470171035,-150.0,0.00041455,30]
[330470167,1719470171060,-1500.0,0.00041456,30]
[330470168,1719470171082,-1000.0,0.00041502,30]
[330470169,1719470171107,-160.32360602,0.00041546,30]
[330470170,1719470171130,-416.035734,0.00041548,30]
[330470171,1719470171153,-1000.0,0.00041603,30]
[330470172,1719470171175,-300.0,0.00041625,120]
[330470173,1719470171198,-510.0,0.00041643,120]
[330470174,1719470171222,-157.0,0.000417,31]
[330470175,1719470171248,-157.0,0.000417,31]
[330470176,1719470171273,-157.0,0.000417,31]
[330470177,1719470171299,-157.0,0.000417,31]
[330470178,1719470171321,-150.0,0.00041702,30]
[330470179,1719470171343,-1000.0,0.00041705,30]
[330470180,1719470171366,-800.0,0.0004173,30]
[330470181,1719470171388,-272.85941951,0.0004173,30]
[330470182,1719470171412,-500.0,0.0004177,30]
[330470183,1719470171435,-416.035734,0.00041794,30]
[330470184,1719470171465,-150.0,0.00041801,120]
[330470185,1719470171487,-1000.0,0.00041806,30]
[330470186,1719470171511,-150.0,0.00041831,120]
[330470187,1719470171533,-928.0,0.00041871,30]
[330470188,1719470171555,-1000.0,0.00041908,30]
[330470189,1719470171578,-510.0,0.00041917,120]
[330470190,1719470171600,-2536.02408315,0.00041947,52]
[330470191,1719470171624,-150.0,0.00041956,30]
[330470192,1719470171646,-1047.34227821,0.00041992,120]
[330470193,1719470171668,-351.06359172,0.00042,120]
[330470194,1719470171690,-967.56711995,0.00042,120]
[330470195,1719470171713,-292.09594015,0.00042,120]
[330470196,1719470171736,-1000.0,0.00042,120]
[330470197,1719470171758,-692.44688135,0.00042,120]
[330470198,1719470171781,-1000.0,0.00042,120]
[330470199,1719470171805,-1000.0,0.00042,120]
[330470200,1719470171829,-573.0,0.00042,120]
[330470201,1719470171851,-500000.0,0.00042,60]
[330470202,1719470171874,-1500.0,0.00042004,30]
[330470203,1719470171896,-1000.0,0.00042009,30]
[330470204,1719470171919,-416.035734,0.0004204,30]
[330470205,1719470171954,-500.0,0.00042044,30]
[330470206,1719470171977,-1000.0,0.00042111,30]
[330470207,1719470171999,-150.0,0.00042113,30]
[330470208,1719470172022,-150.0,0.00042137,30]
[330470209,1719470172046,-172.21111111,0.00042137,120]
[330470210,1719470172069,-7148.95515304,0.0004219,120]
[330470211,1719470172092,-225.38751492,0.00042191,120]
[330470212,1719470172115,-150.0,0.00042209,30]
[330470213,1719470172138,-1000.0,0.00042212,30]
[330470214,1719470172161,-151.0,0.00042247,120]
[330470215,1719470172185,-800.0,0.00042278,30]
[330470216,1719470172217,-416.035734,0.00042286,30]
[330470217,1719470172242,-928.0,0.00042302,30]
[330470218,1719470172268,-1000.0,0.00042314,30]
[330470219,1719470172292,-500.0,0.00042317,30]
[330470220,1719470172317,-1000.0,0.00042415,30]
[330470221,1719470172342,-150.0,0.00042453,120]
[330470222,1719470172366,-150.0,0.00042463,30]
[330470223,1719470172394,-306.76801215,0.00042497,120]
[330470224,1719470172417,-500000.0,0.000425,65]
[330470225,1719470172444,-1000.0,0.00042516,30]
[330470226,1719470172471,-416.035734,0.00042532,30]
[330470227,1719470172497,-1500.0,0.00042552,30]
[330470228,1719470172522,-150.0,0.00042589,120]
[330470229,1719470172552,-500.0,0.0004259,30]
[330470230,1719470172580,-150.0,0.00042601,120]
[330470231,1719470172605,-1000.0,0.00042618,30]
[330470232,1719470172630,-150.0,0.00042716,30]
[330470233,1719470172654,-1000.0,0.00042719,30]
[330470234,1719470173025,-928.0,0.00042734,30]
[330470235,1719470173051,-150.0,0.00042771,30]
[330470236,1719470173075,-416.035734,0.00042778,30]
[330470237,1719470173099,-1412762.78714167,0.000428,30]
[330470238,1719470173123,-1000.0,0.00042821,30]
[330470239,1719470173148,-800.0,0.00042826,30]
[330470240,1719470173174,-150.0,0.00042833,120]
[330470241,1719470173200,-172.21111111,0.00042849,120]
[330470242,1719470173224,-500.0,0.00042863,30]
[330470243,1719470173252,-211.76335993,0.0004288,120]
[330470244,1719470173278,-150.0,0.00042883,120]
[330470245,1719470173303,-951.54811877,0.000429,120]
[330470246,1719470173327,-36444.62623466,0.000429,30]
[330470247,1719470173352,-1000.0,0.00042922,30]
[330470248,1719470173378,-150.0,0.0004297,30]
[330470249,1719470173403,-884.46304728,0.00043,30]
[330470250,1719470173428,-151.0,0.00043,30]
[330470251,1719470173452,-500.0,0.00043,30]
[330470252,1719470173475,-151.0,0.00043,30]
[330470253,1719470173500,-500.0,0.00043,30]
[330470254,1719470173524,-151.0,0.00043,30]
[330470255,1719470173548,-500.0,0.00043,30]
[330470256,1719470173572,-151.0,0.00043,30]
[330470257,1719470173596,-500.0,0.00043,30]
[330470258,1719470173621,-151.0,0.00043,30]
[330470259,1719470173644,-500.0,0.00043,30]
[330470260,1719470173673,-151.0,0.00043,30]
[330470261,1719470173698,-500.0,0.00043,30]
[330470262,1719470173724,-500.0,0.00043,30]
[330470263,1719470173750,-500.0,0.00043,30]
[330470264,1719470173776,-196.0,0.00043,30]
[330470265,1719470173802,-500.0,0.00043,30]
[330470266,1719470173831,-654.0,0.00043,30]
[330470267,1719470173856,-1217.52543895,0.00043,30]
[330470268,1719470173883,-260.00000099,0.00043,31]
[330470269,1719470173909,-1506.0,0.00043,120]
[330470270,1719470173933,-500.0,0.00043,120]
[330470271,1719470173957,-500000.0,0.00043,70]
[330470272,1719470173981,-900.0,0.00043,30]
[330470273,1719470174004,-900.0,0.00043,30]
[330470274,1719470174030,-900.0,0.00043,30]
[330470275,1719470174054,-900.0,0.00043,30]
[330470276,1719470174079,-900.0,0.00043,30]
[330470277,1719470174103,-900.0,0.00043,30]